fUSD/lending_fUSD_20240220
["ID","MTS","AMOUNT","RATE_DAILY","PERIOD"]
[314562441,1708426251261,-500.0,0.0003589,2]
[314562442,1708426251271,-500.0,0.0003589,2]
[314562443,1708426251281,-500.0,0.0003589,2]
[314562444,1708426251289,-166.7,0.0003589,2]
[314562445,1708426251299,-609.71153828,0.0003589,2]
[314562446,1708426251308,-500.0,0.0003589,2]
[314562447,1708426251317,-500.0,0.0003589,2]
[314562448,1708426251327,-500.0,0.0003589,2]
[314562449,1708426251336,-500.0,0.0003589,2]
[314562450,1708426251345,-500.0,0.0003589,2]
[314562451,1708426251354,-500.0,0.0003589,2]
[314562452,1708426251364,-500.0,0.0003589,2]
[314562453,1708426251373,-500.0,0.0003589,2]
[314562454,1708426251383,-500.0,0.0003589,2]
[314562455,1708426251392,-500.0,0.0003589,2]
[314562456,1708426251402,-500.0,0.0003589,2]
[314562457,1708426251411,-500.0,0.0003589,2]
[314562458,1708426251421,-666.45,0.0003589,2]
[314562459,1708426251431,-602.67,0.0003589,2]
[314562460,1708426251440,-529.64,0.0003589,2]
[314562461,1708426251450,-500.0,0.0003589,2]
[314562462,1708426251459,-500.0,0.0003589,2]
[314562463,1708426251469,-500.0,0.0003589,2]
[314562464,1708426251478,-500.0,0.0003589,2]
[314562465,1708426251488,-500.0,0.0003589,2]
[314562466,1708426251498,-500.0,0.0003589,2]
[314562467,1708426251508,-558.48,0.0003589,2]
[314562468,1708426251518,-500.0,0.0003589,2]
[314562469,1708426251527,-500.0,0.0003589,2]
[314562470,1708426251537,-500.68,0.0003589,2]
[314562471,1708426251546,-500.0,0.0003589,2]
[314562472,1708426251555,-500.0,0.0003589,2]
[314562473,1708426251564,-500.0,0.0003589,2]
[314562474,1708426251573,-500.0,0.0003589,2]
[314562475,1708426251583,-500.0,0.0003589,2]
[314562476,1708426251593,-500.0,0.0003589,2]
[314562477,1708426251602,-500.0,0.0003589,2]
[314562478,1708426251611,-500.0,0.0003589,2]
[314562479,1708426251621,-500.0,0.0003589,2]
[314562480,1708426251630,-500.0,0.0003589,2]
[314562481,1708426251639,-500.0,0.0003589,2]
[314562482,1708426251649,-534.35499473,0.0003589,2]
[314562483,1708426251658,-500.0,0.0003589,2]
[314562484,1708426251667,-500.0,0.0003589,2]
[314562485,1708426251676,-500.0,0.0003589,2]
[314562486,1708426251686,-541.21,0.0003589,2]
[314562487,1708426251696,-500.0,0.0003589,2]
[314562488,1708426251706,-500.0,0.0003589,2]
[314562489,1708426251715,-500.0,0.0003589,2]
[314562490,1708426251724,-500.0,0.0003589,2]
[314562491,1708426251733,-500.0,0.0003589,2]
[314562492,1708426251744,-500.0,0.0003589,2]
[314562493,1708426251754,-503.02,0.0003589,2]
[314562494,1708426251763,-500.0,0.0003589,2]
[314562495,1708426251772,-500.0,0.0003589,2]
[314562496,1708426251781,-652.25,0.0003589,2]
[314562497,1708426251790,-500.0,0.0003589,2]
[314562498,1708426251800,-500.0,0.0003589,2]
[314562499,1708426251809,-968.76,0.0003589,2]
[314562500,1708426251818,-500.0,0.0003589,2]
[314562501,1708426251827,-500.0,0.0003589,2]
[314562502,1708426251837,-500.0,0.0003589,2]
[314562503,1708426251846,-500.0,0.0003589,2]
[314562504,1708426251855,-680.35,0.0003589,2]
[314562505,1708426251864,-500.0,0.0003589,2]
[314562506,1708426251873,-500.0,0.0003589,2]
[314562507,1708426251883,-500.0,0.0003589,2]
[314562508,1708426251892,-727.69,0.0003589,2]
[314562509,1708426251901,-500.0,0.0003589,2]
[314562510,1708426251910,-500.0,0.0003589,2]
[314562511,1708426251921,-500.0,0.0003589,2]
[314562512,1708426251932,-500.0,0.0003589,2]
[314562513,1708426251941,-500.0,0.0003589,2]
[314562514,1708426251950,-843.92,0.0003589,2]
[314562515,1708426251959,-595.2,0.0003589,2]
[314562516,1708426251970,-500.0,0.0003589,2]
[314562517,1708426251979,-500.0,0.0003589,2]
[314562518,1708426251989,-1726.31,0.0003589,2]
[314562519,1708426251999,-500.0,0.0003589,2]
[314562520,1708426252008,-546.48,0.0003589,2]
[314562521,1708426252017,-500.0,0.0003589,2]
[314562522,1708426252026,-500.0,0.0003589,2]
[314562523,1708426252036,-500.0,0.0003589,2]
[314562524,1708426252045,-518.02,0.0003589,2]
[314562525,1708426252055,-500.0,0.0003589,2]
[314562526,1708426252065,-500.0,0.0003589,2]
[314562527,1708426252074,-2138.04,0.0003589,2]
[314562528,1708426252084,-500.0,0.0003589,2]
[314562529,1708426252094,-500.0,0.0003589,2]
[314562530,1708426252104,-500.0,0.0003589,2]
[314562531,1708426252113,-1119.85,0.0003589,2]
[314562532,1708426252122,-633.88,0.0003589,2]
[314562533,1708426252131,-1436.61,0.0003589,2]
[314562534,1708426252140,-500.0,0.0003589,2]
[314562535,1708426252149,-500.0,0.0003589,2]
[314562536,1708426252159,-1433.74,0.0003589,2]
[314562537,1708426252168,-500.0,0.0003589,2]
[314562538,1708426252177,-500.0,0.0003589,2]
[314562539,1708426252186,-500.0,0.0003589,2]
[314562540,1708426252195,-500.0,0.0003589,2]
[314562541,1708426252204,-1044.44,0.0003589,2]
[314562542,1708426252213,-2438.32,0.0003589,2]
[314562543,1708426252221,-831.66,0.0003589,2]
[314562544,1708426252231,-500.0,0.0003589,2]
[314562545,1708426252240,-1030.96,0.0003589,2]
[314562546,1708426252249,-500.0,0.0003589,2]
[314562547,1708426252258,-500.0,0.0003589,2]
[314562548,1708426252267,-500.0,0.0003589,2]
[314562549,1708426252276,-500.0,0.0003589,2]
[314562550,1708426252286,-2142.39,0.0003589,2]
[314562551,1708426252295,-876.0,0.0003589,2]
[314562552,1708426252304,-500.0,0.0003589,2]
[314562553,1708426252313,-1222.51,0.0003589,2]
[314562554,1708426252322,-5287.85,0.0003589,2]
[314562555,1708426252331,-500.0,0.0003589,2]
[314562556,1708426252340,-500.0,0.0003589,2]
[314562557,1708426252349,-500.0,0.0003589,2]
[314562558,1708426252358,-1597.71,0.0003589,2]
[314562559,1708426252368,-500.0,0.0003589,2]
[314562560,1708426252377,-715.31,0.0003589,2]
[314562561,1708426252386,-500.0,0.0003589,2]
[314562562,1708426252396,-3085.45,0.0003589,2]
[314562563,1708426252405,-1490.14,0.0003589,2]
[314562564,1708426252414,-500.0,0.0003589,2]
[314562565,1708426252424,-2114.91,0.0003589,2]
[314562566,1708426252433,-2243.01,0.0003589,2]
[314562567,1708426252442,-500.0,0.0003589,2]
[314562568,1708426252451,-500.0,0.0003589,2]
[314562569,1708426252460,-500.0,0.0003589,2]
[314562570,1708426252469,-1427.76,0.0003589,2]
[314562571,1708426252478,-10000.0,0.0003589,3]
[314562572,1708426252487,-1358.6,0.0003589,2]
[314562573,1708426252497,-925.26,0.0003589,2]
[314562574,1708426252506,-1210.16,0.0003589,2]
[314562575,1708426252515,-500.0,0.0003589,2]
[314562576,1708426252524,-440.4794583,0.0003589,2]
[314562577,1708426252534,-500.0,0.0003589,2]
[314562578,1708426252543,-24421.82,0.0003589,2]
[314562579,1708426252552,-500.0,0.0003589,2]
[314562580,1708426252561,-669.97,0.0003589,2]
[314562581,1708426252570,-974.7,0.0003589,2]
[314562582,1708426252579,-2418.04,0.0003589,2]
[314562583,1708426252588,-879.94,0.0003589,2]
[314562584,1708426252598,-500.0,0.0003589,2]
[314562585,1708426252607,-500.0,0.0003589,2]
[314562586,1708426252616,-944.69,0.0003589,2]
[314562587,1708426252625,-500.0,0.0003589,2]
[314562588,1708426252635,-1336.18,0.0003589,2]
[314562589,1708426252644,-500.0,0.0003589,2]
[314562590,1708426252653,-7295.34,0.0003589,2]
[314562591,1708426252662,-500.0,0.0003589,2]
[314562592,1708426252673,-500.0,0.0003589,2]
[314562593,1708426252682,-500.0,0.0003589,2]
[314562594,1708426252691,-500.0,0.0003589,2]
[314562595,1708426252700,-3328.18,0.0003589,2]
[314562596,1708426252709,-5391.17,0.0003589,2]
[314562597,1708426252719,-565.15,0.0003589,2]
[314562598,1708426252728,-500.0,0.0003589,2]
[314562599,1708426252737,-629.26510775,0.0003589,2]
[314562600,1708426252746,-500.0,0.0003589,2]
[314562601,1708426252755,-500.0,0.0003589,2]
[314562602,1708426252764,-1233.49,0.0003589,2]
[314562603,1708426252774,-500.0,0.0003589,2]
[314562604,1708426252782,-500.0,0.0003589,2]
[314562605,1708426252792,-999.77,0.0003589,2]
[314562606,1708426252801,-500.0,0.0003589,2]
[314562607,1708426252811,-500.0,0.0003589,2]
[314562608,1708426252820,-636.24,0.0003589,2]
[314562609,1708426252829,-500.0,0.0003589,2]
[314562610,1708426252838,-500.0,0.0003589,2]
[314562611,1708426252847,-500.0,0.0003589,2]
[314562612,1708426252856,-500.0,0.0003589,2]
[314562613,1708426252866,-500.0,0.0003589,2]
[314562614,1708426252875,-1037.77,0.0003589,2]
[314562615,1708426252884,-1555.87,0.0003589,2]
[314562616,1708426252893,-1085.44,0.0003589,2]
[314562617,1708426252902,-500.0,0.0003589,2]
[314562618,1708426252911,-654.48,0.0003589,2]
[314562619,1708426252923,-500.0,0.0003589,2]
[314562620,1708426252933,-500.0,0.0003589,2]
[314562621,1708426252942,-500.0,0.0003589,2]
[314562622,1708426252950,-229.34924251,0.0003589,2]
[314562623,1708426252959,-500.0,0.0003589,2]
[314562624,1708426252969,-1771.03,0.0003589,2]
[314562625,1708426252978,-500.0,0.0003589,2]
[314562626,1708426252987,-6733.49,0.0003589,2]
[314562627,1708426252997,-930.2,0.0003589,2]
[314562628,1708426253007,-1017.02,0.0003589,2]
[314562629,1708426253016,-500.0,0.0003589,2]
[314562630,1708426253025,-500.0,0.0003589,2]
[314562631,1708426253034,-500.0,0.0003589,2]
[314562632,1708426253043,-692.09,0.0003589,2]
[314562633,1708426253052,-549.74,0.0003589,2]
[314562634,1708426253062,-500.0,0.0003589,2]
[314562635,1708426253071,-1914.98,0.0003589,2]
[314562636,1708426253080,-500.0,0.0003589,2]
[314562637,1708426253089,-724.59,0.0003589,2]
[314562638,1708426253098,-500.0,0.0003589,2]
[314562639,1708426253107,-2133.97,0.0003589,2]
[314562640,1708426253116,-500.0,0.0003589,2]
[314562641,1708426253125,-500.0,0.0003589,2]
[314562642,1708426253135,-500.0,0.0003589,2]
[314562643,1708426253144,-954.36,0.0003589,2]
[314562644,1708426253152,-500.0,0.0003589,2]
[314562645,1708426253161,-500.0,0.0003589,2]
[314562646,1708426253170,-1063.66,0.0003589,2]
[314562647,1708426253179,-500.0,0.0003589,2]
[314562648,1708426253188,-500.0,0.0003589,2]
[314562649,1708426253198,-3864.78,0.0003589,2]
[314562650,1708426253207,-689.84,0.0003589,2]
[314562651,1708426253216,-500.0,0.0003589,2]
[314562652,1708426253225,-1286.87,0.0003589,2]
[314562653,1708426253234,-500.0,0.0003589,2]
[314562654,1708426253244,-500.0,0.0003589,2]
[314562655,1708426253253,-2680.93,0.0003589,2]
[314562656,1708426253263,-737.9,0.0003589,2]
[314562657,1708426253272,-500.0,0.0003589,2]
[314562658,1708426253282,-500.0,0.0003589,2]
[314562659,1708426253293,-878.55,0.0003589,2]
[314562660,1708426253303,-822.74,0.0003589,2]
[314562661,1708426253313,-841.75,0.0003589,2]
[314562662,1708426253322,-500.0,0.0003589,2]
[314562663,1708426253331,-721.08,0.0003589,2]
[314562664,1708426253342,-3733.42,0.0003589,2]
[314562665,1708426253352,-500.0,0.0003589,2]
[314562666,1708426253362,-500.0,0.0003589,2]
[314562667,1708426253371,-708.1,0.0003589,2]
[314562668,1708426253381,-757.09,0.0003589,2]
[314562669,1708426253391,-1715.72,0.0003589,2]
[314562670,1708426253402,-718.67,0.0003589,2]
[314562671,1708426253412,-796.03,0.0003589,2]
[314562672,1708426253422,-500.0,0.0003589,2]
[314562673,1708426253432,-1590.32,0.0003589,2]
[314562674,1708426253442,-1078.09,0.0003589,2]
[314562675,1708426253452,-509.44059109,0.0003589,2]
[314562676,1708426253461,-500.0,0.0003589,2]
[314562677,1708426253471,-674.11,0.0003589,2]
[314562678,1708426253481,-857.11,0.0003589,2]
[314562679,1708426253490,-500.0,0.0003589,2]
[314562680,1708426253500,-500.0,0.0003589,2]
[314562681,1708426253509,-500.0,0.0003589,2]
[314562682,1708426253519,-653.39,0.0003589,2]
[314562683,1708426253529,-1438.56,0.0003589,2]
[314562684,1708426253538,-803.69,0.0003589,2]
[314562685,1708426253548,-2453.49,0.0003589,2]
[314562686,1708426253558,-1182.88,0.0003589,2]
[314562687,1708426253567,-1778.19,0.0003589,2]
[314562688,1708426253577,-500.0,0.0003589,2]
[314562689,1708426253586,-1127.96,0.0003589,2]
[314562690,1708426253596,-780.41,0.0003589,2]
[314562691,1708426253606,-500.0,0.0003589,2]
[314562692,1708426253616,-500.0,0.0003589,2]
[314562693,1708426253626,-1028.84,0.0003589,2]
[314562694,1708426253636,-500.0,0.0003589,2]
[314562695,1708426253645,-500.0,0.0003589,2]
[314562696,1708426253655,-500.0,0.0003589,2]
[314562697,1708426253664,-777.46,0.0003589,2]
[314562698,1708426253673,-500.0,0.0003589,2]
[314562699,1708426253683,-500.0,0.0003589,2]
[314562700,1708426253693,-500.0,0.0003589,2]
[314562701,1708426253704,-918.3,0.0003589,2]
[314562702,1708426253714,-357.36174242,0.0003589,2]
[314562703,1708426253723,-500.0,0.0003589,2]
[314562704,1708426253732,-1253.01,0.0003589,2]
[314562705,1708426253742,-851.37,0.0003589,2]
[314562706,1708426253753,-302.17775959,0.0003589,2]
[314562707,1708426253763,-5182.30459042,0.0003589,2]
[314562708,1708426254026,-500.0,0.00035616,2]
[314562709,1708426254036,-500.0,0.00035616,2]
[314562710,1708426254047,-500.0,0.00035616,2]
[314562711,1708426254056,-60.75540958,0.0003589,2]
[314562712,1708426254066,-1823.29,0.0003589,2]
[314562713,1708426254076,-500.0,0.0003589,2]
[314562714,1708426254086,-500.0,0.0003589,2]
[314562715,1708426254096,-500.0,0.0003589,2]
[314562716,1708426254106,-525.9,0.0003589,2]
[314562717,1708426254116,-4582.65,0.0003589,2]
[314562718,1708426254125,-1441.59107562,0.0003589,2]
[314562719,1708426254137,-1335.37892438,0.0003589,2]
[314562720,1708426254146,-8655.65,0.0003589,2]
[314562721,1708426254156,-500.0,0.0003589,2]
[314562722,1708426254166,-1138.21,0.0003589,2]
[314562723,1708426254176,-519.98,0.0003589,2]
[314562724,1708426254186,-664.93,0.0003589,2]
[314562725,1708426254195,-341.8799252,0.0003589,2]
[314562726,1708426254242,-158.1200748,0.0003589,2]
[314562727,1708426254252,-579.56,0.0003589,2]
[314562728,1708426254262,-500.0,0.0003589,2]
[314562729,1708426254272,-1281.58,0.0003589,2]
[314562730,1708426254282,-931.89,0.0003589,2]
[314562731,1708426254292,-735.17,0.0003589,2]
[314562732,1708426254302,-1118.30147385,0.0003589,2]
[314562733,1708426254314,-307.88852615,0.0003589,2]
[314562734,1708426254323,-344.42516709,0.0003589,2]
[314562735,1708426254333,-1237.39,0.0003589,2]
[314562736,1708426254343,-500.0,0.0003589,2]
[314562737,1708426254353,-500.0,0.0003589,2]
[314562738,1708426254362,-500.0,0.0003589,2]
[314562739,1708426254372,-247.06410612,0.0003589,2]
[314562740,1708426254383,-595.35589388,0.0003589,2]
[314562741,1708426254393,-500.0,0.0003589,2]
[314562742,1708426254403,-500.0,0.0003589,2]
[314562743,1708426254412,-545.89434895,0.0003589,2]
[314562744,1708426254422,-500.0,0.0003589,2]
[314562745,1708426254432,-500.0,0.0003589,2]
[314562746,1708426254442,-500.0,0.0003589,2]
[314562747,1708426254453,-500.0,0.0003589,2]
[314562748,1708426254464,-587.56,0.0003589,2]
[314562749,1708426254473,-500.0,0.0003589,2]
[314562750,1708426254483,-677.09,0.0003589,2]
[314562751,1708426254494,-500.0,0.0003589,2]
[314562752,1708426254504,-500.0,0.0003589,2]
[314562753,1708426254513,-500.0,0.0003589,2]
[314562754,1708426254524,-1599.48,0.0003589,2]
[314562755,1708426254533,-500.0,0.0003589,2]
[314562756,1708426254543,-500.0,0.0003589,2]
[314562757,1708426254553,-2062.35,0.0003589,2]
[314562758,1708426254563,-485.8492686,0.0003589,2]
[314562759,1708426254576,-14.1507314,0.0003589,2]
[314562760,1708426254586,-500.0,0.0003589,2]
[314562761,1708426254596,-530.02,0.0003589,2]
[314562762,1708426254608,-527.64,0.0003589,2]
[314562763,1708426254618,-754.08,0.0003589,2]
[314562764,1708426254627,-500.0,0.0003589,2]
[314562765,1708426254638,-500.0,0.0003589,2]
[314562766,1708426254647,-500.0,0.0003589,2]
[314562767,1708426254657,-500.0,0.0003589,2]
[314562768,1708426254667,-175.72127377,0.0003589,2]
[314562769,1708426254680,-324.27872623,0.0003589,2]
[314562770,1708426254690,-500.0,0.0003589,2]
[314562771,1708426254699,-535.1,0.0003589,2]
[314562772,1708426254710,-241.08605925,0.0003589,2]
[314562773,1708426255970,-834.03137267,0.00035615,4]
[314562774,1708426255979,-500.0,0.00035616,2]
[314562775,1708426255989,-500.0,0.00035616,2]
[314562776,1708426255998,-183.84544715,0.00035616,2]
[314562777,1708426256028,-316.15455285,0.00035616,2]
[314562778,1708426256037,-500.0,0.00035616,2]
[314562779,1708426256046,-500.0,0.00035616,2]
[314562780,1708426256055,-283.94400936,0.00035616,2]
[314562781,1708426256068,-216.05599064,0.00035616,2]
[314562782,1708426256077,-8148.04296237,0.00035875,2]
[314562783,1708426256087,-258.91394075,0.0003589,2]
[314562784,1708426256096,-801.44,0.0003589,2]
[314562785,1708426256106,-500.0,0.0003589,2]
[314562786,1708426256116,-500.0,0.0003589,2]
[314562787,1708426256125,-986.5,0.0003589,2]
[314562788,1708426256135,-500.0,0.0003589,2]
[314562789,1708426256144,-905.35,0.0003589,2]
[314562790,1708426256153,-2452.44,0.0003589,2]
[314562791,1708426256163,-963.11,0.0003589,2]
[314562792,1708426256172,-500.0,0.0003589,2]
[314562793,1708426256181,-985.45,0.0003589,2]
[314562794,1708426256190,-201.79612828,0.0003589,2]
[314562795,1708426256199,-500.0,0.0003589,2]
[314562796,1708426256209,-500.0,0.0003589,2]
[314562797,1708426256219,-500.0,0.0003589,2]
[314562798,1708426256228,-1054.19,0.0003589,2]
[314562799,1708426256238,-500.0,0.0003589,2]
[314562800,1708426256248,-500.0,0.0003589,2]
[314562801,1708426256258,-714.09,0.0003589,2]
[314562802,1708426256267,-500.0,0.0003589,2]
[314562803,1708426256276,-500.0,0.0003589,2]
[314562804,1708426256286,-930.19,0.0003589,2]
[314562805,1708426256295,-500.0,0.0003589,2]
[314562806,1708426256304,-1107.36,0.0003589,2]
[314562807,1708426256313,-2554.24,0.0003589,2]
[314562808,1708426256323,-951.76,0.0003589,2]
[314562809,1708426256332,-524.31,0.0003589,2]
[314562810,1708426256342,-500.0,0.0003589,2]
[314562811,1708426256351,-795.67,0.0003589,2]
[314562812,1708426256360,-627.77,0.0003589,2]
[314562813,1708426256369,-500.0,0.0003589,2]
[314562814,1708426256379,-337.06,0.0003589,2]
[314562815,1708426256389,-500.0,0.0003589,2]
[314562816,1708426256398,-500.0,0.0003589,2]
[314562817,1708426256408,-500.0,0.0003589,2]
[314562818,1708426256419,-500.0,0.0003589,2]
[314562819,1708426256429,-500.0,0.0003589,2]
[314562820,1708426256439,-300.0,0.00035894,2]
[314562821,1708426256449,-357.71222257,0.00035895,2]
[314562822,1708426256459,-535.90876336,0.00035895,2]
[314562823,1708426256469,-150.0,0.00035898,2]
[314562824,1708426256478,-150.0,0.00035899,2]
[314562825,1708426256488,-8003.70655181,0.000359,7]
[314562826,1708426256823,-520.52,0.000359,7]
[314562827,1708426256840,-500.0,0.00035616,2]
[314562828,1708426256849,-2290.83797264,0.000359,7]
[314562829,1708426263909,207.0,0.00023333,2]
[314562830,1708426269448,3165.57792268,0.00023,2]
[314562831,1708426269470,56882.67210792,0.00023,2]
[314562832,1708426269520,219273.5357509,0.00023,2]
[314562837,1708426513658,-131889.0,0.00028,2]
[314562841,1708427164321,-850.0,0.00024898,2]
[314562842,1708427164341,-226.30687486,0.00024899,2]
[314562843,1708427164360,-226.30687486,0.00024899,2]
[314562844,1708427164380,-202.38162336,0.00024899,2]
[314562845,1708427164399,-2988.3926,0.000249,2]
[314562846,1708427164418,-226.30687486,0.000249,2]
[314562847,1708427164438,-750.0,0.00025,3]
[314562858,1708427204623,30.30515206,0.00016712,2]
[314562859,1708427204654,146.19484794,0.00016712,2]
[314562860,1708427230125,-166.48990029,0.00026479,2]
[314562874,1708427371092,-7.79009971,0.00026479,2]
[314562875,1708427371112,-800.0,0.00027,3]
[314562876,1708427371131,-1609.3272,0.00027899,2]
[314562877,1708427371151,-155.23139811,0.00027899,2]
[314562878,1708427371171,-150.0,0.00027999,2]
[314562879,1708427371189,-25337.60771433,0.00028,2]
[314562880,1708427371211,-1422.15,0.00028,2]
[314562881,1708427371233,-1473.1,0.00028,2]
[314562882,1708427376016,11997.5886,0.00027799,2]
[314562925,1708427431524,-155.23139809,0.00028851,2]
[314562926,1708427431535,-850.0,0.00029,3]
[314562927,1708427431545,-155.23139809,0.00029803,2]
[314562928,1708427431555,-155.0,0.0003,2]
[314562929,1708427431565,-177.58,0.0003,2]
[314562930,1708427431575,-308.67848317,0.0003,2]
[314562931,1708427431654,-6222.48151683,0.0003,2]
[314562932,1708427431665,-513.24,0.00030213,2]
[314562933,1708427431675,-155.0,0.00030547,4]
[314562934,1708427431685,-177.58,0.00030548,2]
[314562935,1708427431695,-155.23139809,0.00030755,2]
[314562936,1708427431705,-900.0,0.00031,3]
[314562937,1708427431715,-1282.25,0.00031,2]
[314562938,1708427431725,-177.58,0.00031096,2]
[314562939,1708427431735,-155.0,0.0003137,2]
[314562940,1708427431745,-537.1485,0.00031614,2]
[314562941,1708427431755,-177.58,0.00031644,2]
[314562942,1708427431765,-155.23139809,0.00031708,2]
[314562943,1708427431775,-499.99,0.00031714,2]
[314562944,1708427431786,-165.95,0.00032021,2]
[314562945,1708427431795,-250.0,0.00032106,2]
[314562946,1708427431805,-500.0,0.00032121,2]
[314562947,1708427431816,-353.03,0.00032192,2]
[314562948,1708427431826,-283.85,0.00032207,2]
[314562949,1708427431837,-164.5,0.00032222,2]
[314562950,1708427431846,-182.42,0.00032234,2]
[314562951,1708427431856,-920.7,0.00032237,2]
[314562952,1708427431866,-509.02,0.00032247,2]
[314562953,1708427431876,-348.98,0.00032263,2]
[314562954,1708427431885,-250.0,0.00032281,2]
[314562955,1708427431895,-170.57,0.00032384,2]
[314562956,1708427431904,-2000.0,0.00032384,2]
[314562957,1708427431914,-600.0,0.00032396,2]
[314562958,1708427431923,-157.45,0.00032475,2]
[314562959,1708427431932,-513.24,0.00032477,2]
[314562960,1708427431942,-157.45,0.00032606,2]
[314562961,1708427431952,-155.23139809,0.0003266,2]
[314562962,1708427431961,-157.45,0.00032736,2]
[314562963,1708427431970,-157.45,0.00032866,2]
[314562964,1708427431980,-7920.072,0.000329,2]
[314562965,1708427431989,-311.84124203,0.000329,2]
[314562966,1708427431999,-161.1,0.0003293,2]
[314562967,1708427432008,-155.91,0.0003296,2]
[314562968,1708427432017,-157.45,0.00032996,2]
[314562969,1708427432027,-950.0,0.00033,3]
[314562970,1708427432038,-157.45,0.00033126,2]
[314562971,1708427432047,-157.45,0.00033256,2]
[314562972,1708427432056,-161.1,0.00033259,2]
[314562973,1708427432066,-154.54387429,0.000333,2]
[314562974,1708427432075,-157.45,0.00033387,2]
[314562975,1708427432085,-211.0,0.00033436,2]
[314562976,1708427432094,-164.45,0.00033475,2]
[314562977,1708427432104,-157.45,0.00033517,2]
[314562978,1708427432113,-161.1,0.00033588,2]
[314562979,1708427432123,-155.23139809,0.00033612,2]
[314562980,1708427432133,-165.95,0.00033623,2]
[314562981,1708427432142,-157.45,0.00033647,2]
[314562982,1708427432152,-157.45,0.00033777,2]
[314562983,1708427432161,-283.85,0.0003385,2]
[314562984,1708427432171,-157.45,0.00033907,2]
[314562985,1708427432180,-161.1,0.00033918,2]
[314562986,1708427432190,-1207.81,0.00033921,2]
[314562987,1708427432199,-400.0,0.00033978,2]
[314562988,1708427432209,-157.45,0.00034037,2]
[314562989,1708427432218,-157.45,0.00034168,2]
[314562990,1708427432227,-300.0,0.000342,2]
[314562991,1708427432237,-161.1,0.00034247,2]
[314562992,1708427432246,-3000.0,0.00034297,2]
[314562993,1708427432256,-2652.0,0.000343,2]
[314562994,1708427432265,-1647.0,0.000343,2]
[314562995,1708427432275,-156.17,0.00034312,2]
[314562996,1708427432289,-992.17,0.00034521,2]
[314562997,1708427432299,-155.23139809,0.00034564,2]
[314562998,1708427432308,-502.6,0.0003457,10]
[314562999,1708427432318,-883.75,0.0003457,10]
[314563000,1708427432342,-736.46,0.0003457,10]
[314563001,1708427432358,-161.1,0.00034576,2]
[314563002,1708427432373,-839.61095844,0.00034579,4]
[314563003,1708427432390,-281.7472,0.0003458,2]
[314563004,1708427432407,-53406.04961193,0.0003458,2]
[314563005,1708427432494,-21456.46918807,0.0003458,2]
[314563006,1708427432508,-22242.94756633,0.0003467,2]
[314563007,1708427432623,-0.02760247,0.0003467,2]
[314563008,1708427432643,-494.4,0.0003467,2]
[314563009,1708427433955,-250.0,0.00032143,2]
[314563010,1708427433968,-13831.2773877,0.0003467,2]
[314563014,1708427440024,-400.0,0.0003404,2]
[314563015,1708427440034,-613.71,0.0003466,10]